fUST/lending_fUST_20240518
["ID","MTS","AMOUNT","RATE_DAILY","PERIOD"]
[327361083,1716017465097,-153.42480434,0.00026202,2]
[327361084,1716017465106,-1784.32917088,0.00026205,2]
[327361085,1716017465115,-1784.32917088,0.00026242,2]
[327361086,1716017465124,-1132.40394904,0.00026249,2]
[327361087,1716017465134,-1784.32917088,0.00026251,2]
[327361088,1716017465143,-180.0,0.000263,2]
[327361089,1716017465155,-291.1899476,0.00026301,2]
[327361090,1716017465165,-291.1899476,0.00026301,2]
[327361091,1716017465174,-291.1899476,0.00026301,2]
[327361092,1716017465184,-291.1899476,0.00026301,2]
[327361093,1716017465193,-291.1899476,0.00026301,2]
[327361094,1716017465201,-614.5390975,0.00026301,2]
[327361095,1716017465210,-154.35056966,0.00026315,2]
[327361096,1716017465219,-291.1899476,0.00026329,2]
[327361097,1716017465229,-291.1899476,0.00026329,2]
[327361098,1716017465238,-291.1899476,0.00026329,2]
[327361099,1716017465247,-291.1899476,0.00026329,2]
[327361100,1716017465258,-1132.40394904,0.00026337,2]
[327361101,1716017465269,-1784.32917088,0.00026341,2]
[327361102,1716017465278,-151.33163564,0.00026342,2]
[327361103,1716017465288,-1132.40394904,0.00026386,2]
[327361104,1716017465297,-378.744033,0.00026388,2]
[327361105,1716017465306,-1784.32917088,0.00026402,2]
[327361106,1716017465315,-153.42480443,0.00026424,2]
[327361107,1716017465324,-1132.40394904,0.00026454,2]
[327361108,1716017465334,-1784.32917088,0.00026458,2]
[327361109,1716017465432,-2178.880561,0.000265,2]
[327361110,1716017465442,-154.70605849,0.000265,2]
[327361111,1716017465452,-1749.5886247,0.000265,2]
[327361112,1716017465462,-377.62464345,0.000265,2]
[327361113,1716017465471,-202.0,0.000265,60]
[327361114,1716017465481,-159.31714811,0.0002651,2]
[327361115,1716017465491,-154.35056966,0.00026515,2]
[327361116,1716017465500,-1784.32917088,0.00026515,2]
[327361117,1716017465511,-1784.32917088,0.0002653,2]
[327361118,1716017465520,-154.35056973,0.00026536,2]
[327361119,1716017465530,-15179.28264641,0.0002655,2]
[327361120,1716017465539,-1132.40394904,0.0002657,2]
[327361121,1716017465549,-1784.32917111,0.00026579,2]
[327361122,1716017465559,-158.64253178,0.00026584,2]
[327361123,1716017465569,-1132.40394921,0.00026586,2]
[327361124,1716017465579,-2043.30294409,0.000266,2]
[327361125,1716017465588,-2345.19760453,0.000266,120]
[327361126,1716017465597,-568.0,0.00026822,2]
[327361127,1716017465607,-32791.45193041,0.000269,5]
[327361128,1716017465617,-187.03428599,0.00027,2]
[327361129,1716017465626,-35933.57184001,0.00027,15]
[327361130,1716017465636,-568.0,0.00027064,2]
[327361131,1716017465645,-408.4174447,0.00027123,2]
[327361132,1716017465655,-172.89096058,0.00027195,2]
[327361133,1716017465664,-171.01541285,0.00027195,2]
[327361134,1716017465674,-253.56595249,0.00027386,2]
[327361135,1716017465684,-200.15534199,0.00027397,2]
[327361136,1716017465697,-500.16993785,0.00027397,2]
[327361137,1716017465707,-500.16993785,0.00027397,2]
[327361138,1716017465717,-500.16993785,0.00027397,2]
[327361139,1716017465727,-500.16993785,0.00027397,2]
[327361140,1716017465738,-500.16993785,0.00027397,2]
[327361141,1716017465747,-500.16993785,0.00027397,2]
[327361142,1716017465757,-500.16993785,0.00027397,2]
[327361143,1716017465766,-500.16993785,0.00027397,2]
[327361144,1716017465778,-500.16993785,0.00027397,2]
[327361145,1716017465789,-500.16993785,0.00027397,2]
[327361146,1716017465798,-500.16993785,0.00027397,2]
[327361147,1716017465808,-500.16993785,0.00027397,2]
[327361148,1716017465817,-500.16993785,0.00027397,2]
[327361149,1716017465826,-500.16993785,0.00027397,2]
[327361150,1716017465836,-500.16993785,0.00027397,2]
[327361151,1716017465846,-500.16993785,0.00027397,2]
[327361152,1716017465855,-500.16993785,0.00027397,2]
[327361153,1716017465865,-500.16993785,0.00027397,2]
[327361154,1716017465875,-500.16993785,0.00027397,2]
[327361155,1716017465885,-500.16993785,0.00027397,2]
[327361156,1716017465894,-500.16993785,0.00027397,2]
[327361157,1716017465903,-500.16993785,0.00027397,2]
[327361158,1716017465913,-500.16993785,0.00027397,2]
[327361159,1716017465923,-500.16993785,0.00027397,2]
[327361160,1716017465932,-500.16993785,0.00027397,2]
[327361161,1716017465942,-500.16993785,0.00027397,2]
[327361162,1716017465951,-500.16993785,0.00027397,2]
[327361163,1716017465960,-500.16993785,0.00027397,2]
[327361164,1716017465970,-500.16993785,0.00027397,2]
[327361165,1716017465980,-500.16993785,0.00027397,2]
[327361166,1716017465989,-500.16993785,0.00027397,2]
[327361167,1716017465998,-500.16993785,0.00027397,2]
[327361168,1716017466007,-500.16993785,0.00027397,2]
[327361169,1716017466016,-500.16993785,0.00027397,2]
[327361170,1716017466026,-500.16993785,0.00027397,2]
[327361171,1716017466035,-500.16993785,0.00027397,2]
[327361172,1716017466044,-500.16993785,0.00027397,2]
[327361173,1716017466053,-500.16993785,0.00027397,2]
[327361174,1716017466063,-500.16993785,0.00027397,2]
[327361175,1716017466072,-500.16993785,0.00027397,2]
[327361176,1716017466082,-500.16993785,0.00027397,2]
[327361177,1716017466091,-500.16993785,0.00027397,2]
[327361178,1716017466100,-500.16993785,0.00027397,2]
[327361179,1716017466111,-500.16993785,0.00027397,2]
[327361180,1716017466120,-500.16993785,0.00027397,2]
[327361181,1716017466130,-500.16993785,0.00027397,2]
[327361182,1716017466139,-500.16993785,0.00027397,2]
[327361183,1716017466148,-500.16993785,0.00027397,2]
[327361184,1716017466158,-500.0,0.00027397,2]
[327361185,1716017466167,-500.0,0.00027397,2]
[327361186,1716017466176,-252.97391243,0.00027397,2]
[327361187,1716017466185,-500.0,0.00027397,2]
[327361188,1716017466194,-500.0,0.00027397,2]
[327361189,1716017466203,-500.0,0.00027397,2]
[327361190,1716017466212,-500.0,0.00027397,2]
[327361191,1716017466222,-500.0,0.00027397,2]
[327361192,1716017466232,-500.0,0.00027397,2]
[327361193,1716017466242,-500.0,0.00027397,2]
[327361194,1716017466251,-500.0,0.00027397,2]
[327361195,1716017466262,-500.0,0.00027397,2]
[327361196,1716017466274,-500.0,0.00027397,2]
[327361197,1716017466283,-500.0,0.00027397,2]
[327361198,1716017466292,-500.0,0.00027397,2]
[327361199,1716017466302,-500.0,0.00027397,2]
[327361200,1716017466310,-500.0,0.00027397,2]
[327361201,1716017466320,-499.99999997,0.00027397,2]
[327361202,1716017466329,-3783.71,0.00027397,2]
[327361203,1716017466338,-3783.71,0.00027397,2]
[327361204,1716017466348,-3783.71,0.00027397,2]
[327361205,1716017466357,-3783.71,0.00027397,2]
[327361206,1716017466367,-3783.71,0.00027397,2]
[327361207,1716017466376,-3783.71,0.00027397,2]
[327361208,1716017466385,-3783.71,0.00027397,2]
[327361209,1716017466395,-3783.71,0.00027397,2]
[327361210,1716017466404,-3783.71,0.00027397,2]
[327361211,1716017466413,-3783.71,0.00027397,2]
[327361212,1716017466422,-3783.71,0.00027397,2]
[327361213,1716017466432,-3783.71,0.00027397,2]
[327361214,1716017466441,-3783.71,0.00027397,2]
[327361215,1716017466451,-3783.71,0.00027397,2]
[327361216,1716017466460,-3783.71,0.00027397,2]
[327361217,1716017466469,-3783.71,0.00027397,2]
[327361218,1716017466479,-3783.71,0.00027397,2]
[327361219,1716017466488,-3783.71,0.00027397,2]
[327361220,1716017466497,-3783.71,0.00027397,2]
[327361221,1716017466507,-3783.71,0.00027397,2]
[327361222,1716017466517,-3783.71,0.00027397,2]
[327361223,1716017466526,-3783.71,0.00027397,2]
[327361224,1716017466536,-3783.71,0.00027397,2]
[327361225,1716017466545,-3783.84825833,0.00027397,2]
[327361226,1716017466555,-1100.0,0.00027397,20]
[327361227,1716017466565,-943.16315219,0.00027397,20]
[327361228,1716017466575,-1103.77,0.00027397,5]
[327361229,1716017466585,-198.34836154,0.000274,2]
[327361230,1716017466595,-1039.73,0.000274,2]
[327361231,1716017466604,-248.25350474,0.00027487,2]
[327361232,1716017466614,-155.16895454,0.00027498,2]
[327361233,1716017466623,-204.46074535,0.00027498,2]
[327361234,1716017466633,-303.23887449,0.00027499,2]
[327361235,1716017466643,-43412.59648508,0.000275,2]
[327361236,1716017466652,-808.66497986,0.000275,17]
[327361237,1716017466662,-300.04280771,0.00027528,2]
[327361238,1716017466672,-568.0,0.00027547,2]
[327361239,1716017466682,-240.73228948,0.00027548,2]
[327361240,1716017466692,-300.3891002,0.00027548,2]
[327361241,1716017466706,-255.92442138,0.00027629,2]
[327361242,1716017466716,-207.3388637,0.00027671,2]
[327361243,1716017466725,-154.8375401,0.00027945,2]
[327361244,1716017466735,-153.0,0.00027945,2]
[327361245,1716017466744,-153.0,0.00027945,2]
[327361246,1716017466754,-153.0,0.00027945,2]
[327361247,1716017466763,-153.0,0.00027945,2]
[327361248,1716017466774,-221.44137162,0.00028,2]
[327361249,1716017466785,-133342.51488321,0.00028,4]
[327361250,1716017466795,-225051.36568607,0.00028,4]
[327361251,1716017466804,-52354.53022065,0.00028,4]
[327361252,1716017466814,-154.70605849,0.00028,7]
[327361253,1716017466824,-504.09272887,0.00028,2]
[327361254,1716017466834,-1000.0,0.00028,28]
[327361255,1716017466843,-568.0,0.00028031,2]
[327361256,1716017466853,-568.0,0.00028272,2]
[327361257,1716017466863,-153.0,0.00028493,2]
[327361258,1716017466872,-150.0,0.00028537,2]
[327361259,1716017466881,-1103.77,0.00028767,8]
[327361260,1716017466891,-186843.46079572,0.0002877,2]
[327361261,1716017466900,-2020.36056279,0.0002877,2]
[327361262,1716017466909,-166.666666,0.00028986,2]
[327361263,1716017466918,-568.0,0.00028997,2]
[327361264,1716017466928,-568.0,0.00028997,2]
[327361265,1716017466938,-189.56983418,0.00029,2]
[327361266,1716017466947,-845.33824953,0.00029,2]
[327361267,1716017466957,-306.0,0.0002926,2]
[327361268,1716017466967,-150.71364408,0.00029446,2]
[327361269,1716017466978,-250.01584989,0.00029446,2]
[327361270,1716017466987,-568.0,0.00029722,2]
[327361271,1716017466997,-1671.40986891,0.00029837,2]
[327361272,1716017467006,-127723.53900843,0.000299,2]
[327361273,1716017467018,-51276.46099157,0.000299,2]
[327361274,1716017467029,-301.42728815,0.00029941,4]
[327361275,1716017467038,-309.55588136,0.0003,4]
[327361276,1716017467049,-309.28308511,0.0003,4]
[327361277,1716017467060,-160.0,0.0003,2]
[327361278,1716017467070,-20000.0,0.0003,8]
[327361279,1716017467080,-278.66477252,0.0003,2]
[327361280,1716017467089,-7501.18707594,0.0003,2]
[327361281,1716017467098,-1028.0,0.0003,15]
[327361282,1716017467107,-500.563188,0.0003,7]
[327361283,1716017467116,-1500.0,0.0003,2]
[327361284,1716017467127,-7714.31849284,0.0003,10]
[327361285,1716017467136,-4503.0377145,0.0003,10]
[327361286,1716017467145,-795.36699732,0.0003,30]
[327361287,1716017467154,-260.0,0.0003,2]
[327361288,1716017467163,-269.34980819,0.0003,2]
[327361289,1716017467172,-291.1899476,0.00030082,2]
[327361290,1716017467186,-582.3798952,0.00030082,2]
[327361291,1716017467195,-291.1899476,0.00030082,2]
[327361292,1716017467205,-291.1899476,0.00030082,2]
[327361293,1716017467214,-291.1899476,0.00030082,2]
[327361294,1716017467223,-581.301562,0.00030082,2]
[327361295,1716017467233,-291.1899476,0.00030082,2]
[327361296,1716017467242,-291.1899476,0.00030082,2]
[327361297,1716017467252,-291.1899476,0.00030082,2]
[327361298,1716017467261,-291.1899476,0.00030082,2]
[327361299,1716017467270,-291.1899476,0.00030082,2]
[327361300,1716017467279,-1103.77,0.00030136,11]
[327361301,1716017467288,-750.0,0.0003031,2]
[327361302,1716017467298,-602.85457631,0.00030444,7]
[327361303,1716017467307,-568.0,0.00030447,2]
[327361304,1716017467316,-291.1899476,0.00030554,2]
[327361305,1716017467326,-291.1899476,0.00030554,2]
[327361306,1716017467336,-292.3359833,0.00030554,2]
[327361307,1716017467345,-408.4921101,0.00030904,2]
[327361308,1716017467354,-1000.0,0.00030911,2]
[327361309,1716017467363,-1970.51229412,0.00031,2]
[327361310,1716017467373,-2500.0,0.00031,2]
[327361311,1716017467382,-3000.0,0.00031,6]
[327361312,1716017467392,-386.31211597,0.00031,2]
[327361313,1716017467401,-386.31211597,0.00031,2]
[327361314,1716017467410,-386.31211597,0.00031,2]
[327361315,1716017467419,-386.31211597,0.00031,2]
[327361316,1716017467428,-386.31211597,0.00031,2]
[327361317,1716017467437,-386.31211597,0.00031,2]
[327361318,1716017467446,-386.31211597,0.00031,2]
[327361319,1716017467539,-386.31211597,0.00031,2]
[327361320,1716017467549,-386.31211597,0.00031,2]
[327361321,1716017467558,-386.31211597,0.00031,2]
[327361322,1716017467568,-386.31211,0.00031,2]
[327361323,1716017467577,-3000.0,0.0003101,6]
[327361324,1716017467586,-3000.0,0.0003102,6]
[327361325,1716017467595,-3000.0,0.0003103,6]
[327361326,1716017467605,-3000.0,0.0003104,6]
[327361327,1716017467614,-3000.0,0.0003105,6]
[327361328,1716017467623,-3000.0,0.0003106,6]
[327361329,1716017467633,-3000.0,0.0003107,6]
[327361330,1716017467643,-3000.0,0.0003108,6]
[327361331,1716017467652,-3000.0,0.0003109,6]
[327361332,1716017467661,-3000.0,0.000311,6]
[327361333,1716017467671,-3000.0,0.0003111,6]
[327361334,1716017467680,-3000.0,0.0003112,6]
[327361335,1716017467691,-3000.0,0.0003113,6]
[327361336,1716017467704,-3000.0,0.0003114,6]
[327361337,1716017467713,-3000.0,0.0003115,7]
[327361338,1716017467723,-3000.0,0.0003116,7]
[327361339,1716017467733,-3000.0,0.0003117,7]
[327361340,1716017467742,-3000.0,0.0003118,7]
[327361341,1716017467752,-3000.0,0.0003119,7]
[327361342,1716017467761,-3000.0,0.000312,7]
[327361343,1716017467772,-3000.0,0.0003121,7]
[327361344,1716017467782,-1205.70915261,0.00031215,30]
[327361345,1716017467791,-3000.0,0.0003122,7]
[327361346,1716017467800,-3000.0,0.0003123,7]
[327361347,1716017467809,-3000.0,0.0003124,7]
[327361348,1716017467819,-3000.0,0.0003125,7]
[327361349,1716017467828,-3000.0,0.0003126,7]
[327361350,1716017467837,-3000.0,0.0003127,7]
[327361351,1716017467846,-3000.0,0.0003128,7]
[327361352,1716017467856,-3000.0,0.0003129,7]
[327361353,1716017467866,-3000.0,0.000313,7]
[327361354,1716017467875,-3000.0,0.0003131,7]
[327361355,1716017467885,-3000.0,0.0003132,7]
[327361356,1716017467895,-3000.0,0.0003133,7]
[327361357,1716017467904,-3000.0,0.0003134,7]
[327361358,1716017467913,-3000.0,0.0003135,7]
[327361359,1716017467922,-3000.0,0.0003136,7]
[327361360,1716017467931,-199.7448,0.00031365,30]
[327361361,1716017467943,-3000.0,0.0003137,7]
[327361362,1716017467954,-291.1899476,0.00031376,2]
[327361363,1716017467963,-3000.0,0.0003138,7]
[327361364,1716017467972,-3000.0,0.0003139,7]
[327361365,1716017467982,-3000.0,0.000314,8]
[327361366,1716017467992,-3000.0,0.0003141,8]
[327361367,1716017468001,-3339.922694,0.0003142,8]
[327361368,1716017468011,-1103.77,0.00031506,14]
[327361369,1716017468022,-153.0,0.00031726,2]
[327361370,1716017468031,-153.0,0.00031726,2]
[327361371,1716017468042,-153.0,0.00031726,2]
[327361372,1716017468051,-153.0,0.00031726,2]
[327361373,1716017468061,-153.0,0.00031726,2]
[327361374,1716017468071,-153.0,0.00031726,2]
[327361375,1716017468080,-153.0,0.00031726,2]
[327361376,1716017468090,-153.0,0.00031726,2]
[327361377,1716017468099,-584.30865178,0.00032,4]
[327361378,1716017468108,-1000.0,0.00032,32]
[327361379,1716017468118,-204.1985749,0.00032198,2]
[327361380,1716017468128,-500.91169994,0.00032232,2]
[327361381,1716017468137,-156.02696672,0.00032876,2]
[327361382,1716017468146,-500.0,0.00032876,2]
[327361383,1716017468156,-500.0,0.00032876,2]
[327361384,1716017468166,-500.0,0.00032876,2]
[327361385,1716017468175,-500.0,0.00032876,2]
[327361386,1716017468185,-500.0,0.00032876,2]
[327361387,1716017468194,-500.0,0.00032876,2]
[327361388,1716017468204,-500.0,0.00032876,2]
[327361389,1716017468213,-202.15171864,0.00032876,2]
[327361390,1716017468223,-500.0,0.00032876,2]
[327361391,1716017468233,-203.9391887,0.00032876,2]
[327361392,1716017468243,-500.0,0.00032876,2]
[327361393,1716017468252,-500.0,0.00032876,2]
[327361394,1716017468261,-500.0,0.00032876,2]
[327361395,1716017468271,-500.0,0.00032876,2]
[327361396,1716017468281,-500.0,0.00032876,2]
[327361397,1716017468290,-500.0,0.00032876,2]
[327361398,1716017468300,-296.245708,0.00032876,2]
[327361399,1716017468310,-500.0,0.00032876,2]
[327361400,1716017468319,-500.0,0.00032876,2]
[327361401,1716017468328,-500.0,0.00032876,2]
[327361402,1716017468338,-500.0,0.00032876,2]
[327361403,1716017468348,-500.0,0.00032876,2]
[327361404,1716017468357,-500.0,0.00032876,2]
[327361405,1716017468366,-500.0,0.00032876,2]
[327361406,1716017468376,-500.0,0.00032876,2]
[327361407,1716017468385,-500.0,0.00032876,2]
[327361408,1716017468394,-500.0,0.00032876,2]
[327361409,1716017468404,-500.0,0.00032876,2]
[327361410,1716017468413,-500.0,0.00032876,2]
[327361411,1716017468422,-500.0,0.00032876,2]
[327361412,1716017468431,-500.0,0.00032876,2]
[327361413,1716017468440,-500.0,0.00032876,2]
[327361414,1716017468450,-500.0,0.00032876,2]
[327361415,1716017468459,-500.0,0.00032876,2]
[327361416,1716017468468,-500.0,0.00032876,2]
[327361417,1716017468477,-500.0,0.00032876,2]
[327361418,1716017468486,-500.0,0.00032876,2]
[327361419,1716017468496,-250.0,0.00032876,2]
[327361420,1716017468505,-500.0,0.00032876,2]
[327361421,1716017468514,-300.0,0.00032876,2]
[327361422,1716017468523,-267.8861958,0.00032876,2]
[327361423,1716017468533,-500.0,0.00032876,2]
[327361424,1716017468542,-356.68072285,0.00032876,2]
[327361425,1716017468551,-500.0,0.00032876,2]
[327361426,1716017468561,-500.0,0.00032876,2]
[327361427,1716017468570,-312.04957467,0.00032876,2]
[327361428,1716017468579,-328.33068398,0.00032876,2]
[327361429,1716017468589,-500.0,0.00032876,2]
[327361430,1716017468598,-500.0,0.00032876,2]
[327361431,1716017468607,-500.0,0.00032876,2]
[327361432,1716017468617,-174.57047947,0.00032876,2]
[327361433,1716017468626,-500.0,0.00032876,2]
[327361434,1716017468635,-500.0,0.00032876,2]
[327361435,1716017468644,-500.0,0.00032876,2]
[327361436,1716017468654,-500.0,0.00032876,2]
[327361437,1716017468664,-500.0,0.00032876,2]
[327361438,1716017468674,-500.0,0.00032876,2]
[327361439,1716017468683,-500.0,0.00032876,2]
[327361440,1716017468693,-350.76867476,0.00032876,2]
[327361441,1716017468708,-500.0,0.00032876,2]
[327361442,1716017468718,-500.0,0.00032876,2]
[327361443,1716017468727,-500.0,0.00032876,2]
[327361444,1716017468737,-500.0,0.00032876,2]
[327361445,1716017468746,-550.0,0.00032876,2]
[327361446,1716017468756,-500.0,0.00032876,2]
[327361447,1716017468765,-500.0,0.00032876,2]
[327361448,1716017468775,-500.0,0.00032876,2]
[327361449,1716017468786,-500.0,0.00032876,2]
[327361450,1716017468796,-500.0,0.00032876,2]
[327361451,1716017468806,-500.0,0.00032876,2]
[327361452,1716017468815,-500.0,0.00032876,2]
[327361453,1716017468824,-500.0,0.00032876,2]
[327361454,1716017468833,-500.0,0.00032876,2]
[327361455,1716017468842,-500.0,0.00032876,2]
[327361456,1716017468852,-500.0,0.00032876,2]
[327361457,1716017468861,-500.0,0.00032876,2]
[327361458,1716017468871,-500.0,0.00032876,2]
[327361459,1716017468880,-500.0,0.00032876,2]
[327361460,1716017468890,-500.0,0.00032876,2]
[327361461,1716017468900,-500.0,0.00032876,2]
[327361462,1716017468909,-500.0,0.00032876,2]
[327361463,1716017468919,-500.0,0.00032876,2]
[327361464,1716017468928,-500.0,0.00032876,2]
[327361465,1716017468937,-191.69392141,0.00032876,2]
[327361466,1716017468946,-500.0,0.00032876,2]
[327361467,1716017468956,-500.0,0.00032876,2]
[327361468,1716017468966,-500.0,0.00032876,2]
[327361469,1716017468975,-500.0,0.00032876,2]
[327361470,1716017468985,-500.0,0.00032876,2]
[327361471,1716017468994,-500.0,0.00032876,2]
[327361472,1716017469003,-500.0,0.00032876,2]
[327361473,1716017469013,-500.0,0.00032876,2]
[327361474,1716017469023,-500.0,0.00032876,2]
[327361475,1716017469033,-500.0,0.00032876,2]
[327361476,1716017469043,-207.520906,0.00032876,2]
[327361477,1716017469052,-496.33305043,0.00032876,2]
[327361478,1716017469062,-500.16993785,0.00032876,2]
[327361479,1716017469072,-500.16993785,0.00032876,2]
[327361480,1716017469081,-500.16993785,0.00032876,2]
[327361481,1716017469091,-500.16993785,0.00032876,2]
[327361482,1716017469100,-500.16993785,0.00032876,2]
[327361483,1716017469110,-500.16993785,0.00032876,2]
[327361484,1716017469119,-500.16993785,0.00032876,2]
[327361485,1716017469128,-500.16993785,0.00032876,2]
[327361486,1716017469137,-500.16993785,0.00032876,2]
[327361487,1716017469146,-500.16993785,0.00032876,2]
[327361488,1716017469156,-500.16993785,0.00032876,2]
[327361489,1716017469165,-500.16993785,0.00032876,2]
[327361490,1716017469174,-500.16993785,0.00032876,2]
[327361491,1716017469184,-500.16993785,0.00032876,2]
[327361492,1716017469193,-500.16993785,0.00032876,2]
[327361493,1716017469203,-500.16993785,0.00032876,2]
[327361494,1716017469212,-500.16993785,0.00032876,2]
[327361495,1716017469221,-500.16993785,0.00032876,2]
[327361496,1716017469231,-500.16993785,0.00032876,2]
[327361497,1716017469241,-500.16993785,0.00032876,2]
[327361498,1716017469250,-500.16993785,0.00032876,2]
[327361499,1716017469259,-500.16993785,0.00032876,2]
[327361500,1716017469268,-500.16993785,0.00032876,2]
[327361501,1716017469277,-500.16993785,0.00032876,2]
[327361502,1716017469287,-500.16993785,0.00032876,2]
[327361503,1716017469295,-500.16993785,0.00032876,2]
[327361504,1716017469305,-500.16993785,0.00032876,2]
[327361505,1716017469314,-535.89636199,0.00032876,2]
[327361506,1716017469324,-535.89636199,0.00032876,2]
[327361507,1716017469333,-535.89636199,0.00032876,2]
[327361508,1716017469342,-535.89636199,0.00032876,2]
[327361509,1716017469351,-535.89636199,0.00032876,2]
[327361510,1716017469361,-535.89636199,0.00032876,2]
[327361511,1716017469370,-535.89636199,0.00032876,2]
[327361512,1716017469465,-337.39238949,0.00032876,2]
[327361513,1716017469475,-500.0,0.00032876,2]
[327361514,1716017469485,-500.0,0.00032876,2]
[327361515,1716017469494,-3515.59648509,0.00032876,2]
[327361516,1716017469504,-3515.59648509,0.00032876,2]
[327361517,1716017469513,-3515.59648509,0.00032876,2]
[327361518,1716017469523,-3515.59648509,0.00032876,2]
[327361519,1716017469533,-3515.59648509,0.00032876,2]
[327361520,1716017469543,-3515.59648509,0.00032876,2]
[327361521,1716017469552,-3515.59648509,0.00032876,2]
[327361522,1716017469562,-3515.59648509,0.00032876,2]
[327361523,1716017469571,-3515.59648509,0.00032876,2]
[327361524,1716017469581,-3515.59648509,0.00032876,2]
[327361525,1716017469590,-3515.59648509,0.00032876,2]
[327361526,1716017469600,-3515.59648509,0.00032876,2]
[327361527,1716017469609,-3515.59648509,0.00032876,2]
[327361528,1716017469619,-3515.59648509,0.00032876,2]
[327361529,1716017469628,-3515.59648509,0.00032876,2]
[327361530,1716017469638,-3515.59648509,0.00032876,2]
[327361531,1716017469647,-3515.59648509,0.00032876,2]
[327361532,1716017469657,-3515.59648509,0.00032876,2]
[327361533,1716017469666,-3515.59648509,0.00032876,2]
[327361534,1716017469676,-3515.59648509,0.00032876,2]
[327361535,1716017469685,-3515.59648509,0.00032876,2]
[327361536,1716017469696,-3515.59648509,0.00032876,2]
[327361537,1716017469710,-3603.48639722,0.00032876,2]
[327361538,1716017469719,-3603.48639722,0.00032876,2]
[327361539,1716017469728,-3603.48639722,0.00032876,2]
[327361540,1716017469742,-3603.48639722,0.00032876,2]
[327361541,1716017469752,-3603.48639722,0.00032876,2]
[327361542,1716017469761,-3603.48639722,0.00032876,2]
[327361543,1716017469771,-3603.48639722,0.00032876,2]
[327361544,1716017469782,-3603.48639722,0.00032876,2]
[327361545,1716017469793,-3603.48639722,0.00032876,2]
[327361546,1716017469802,-3603.48639722,0.00032876,2]
[327361547,1716017469812,-5293.39725934,0.00032876,2]
[327361548,1716017469821,-266.16540754,0.00032876,2]
[327361549,1716017469831,-884.19858042,0.00032876,2]
[327361550,1716017469840,-388.57354165,0.00032876,2]
[327361551,1716017469850,-223.37668586,0.00032876,2]
[327361552,1716017469860,-800.0,0.00032876,2]
[327361553,1716017469869,-800.0,0.00032876,4]
[327361554,1716017469878,-800.0,0.00032876,6]
[327361555,1716017469888,-800.0,0.00032876,8]
[327361556,1716017469898,-800.0,0.00032876,10]
[327361557,1716017469907,-800.0,0.00032876,12]
[327361558,1716017469916,-800.0,0.00032876,14]
[327361559,1716017469926,-495.45121065,0.00032876,16]
[327361560,1716017469935,-1103.77,0.00032876,17]
[327361561,1716017469944,-6241.97,0.00032899,2]
[327361562,1716017469954,-6241.97,0.00032899,2]
[327361563,1716017469963,-6241.97,0.00032899,2]
[327361564,1716017469972,-6241.97,0.00032899,2]
[327361565,1716017469984,-6241.97,0.00032899,2]
[327361566,1716017469993,-6241.97,0.00032899,2]
[327361567,1716017470003,-6241.97,0.00032899,2]
[327361568,1716017470012,-6241.97,0.00032899,2]
[327361569,1716017470022,-6241.97,0.00032899,2]
[327361570,1716017470032,-6241.97,0.00032899,2]
[327361571,1716017470041,-14910.0,0.000329,7]
[327361572,1716017470050,-150.39190537,0.00033,2]
[327361573,1716017470060,-2108.42969691,0.00033,4]
[327361574,1716017470069,-260.0,0.00033,2]
[327361575,1716017470078,-260.0,0.00033,2]
[327361576,1716017470087,-378.744033,0.00033598,2]
[327361577,1716017470097,-467.5754666,0.00034,4]
[327361578,1716017470105,-501.706943,0.00034,7]
[327361579,1716017470115,-234.16922818,0.00034,2]
[327361580,1716017470124,-522.11418794,0.00034,5]
[327361581,1716017470133,-1103.77,0.00034246,20]
[327361582,1716017470142,-472.0,0.00034309,73]